Cogmind - Beta 13 @@@ ROGUE MODE // 2024.03.31 @ 14:56:33 Player: weedlord420 Result: Self-destructed Performance ------------- Evolutions (1) 500 Regions Visited (2) 400 Robots Destroyed (39) 195 Value Destroyed (1041) 1041 Prototype IDs (4) 80 Alien Tech Used (0) 0 Bonus (19) 19 TOTAL SCORE: 2235 Bonus ------- High Alert Combat Kills 19 Cogmind --------- Core Integrity 99/400 Matter 179/300 Energy 265/265 System Corruption 10% Temperature Cool (0) Movement Core (300) Ox5 Location -9/Materials Parts ------- > --- POWER (1) -------- Reinforced Ion Engine > --- PROPULSION (2) --- (None) > --- UTILITY (4) ------ Small Storage Unit Visual Processing Unit Targeting Computer > --- WEAPON (2) ------- Heavy Assault Rifle > --- INVENTORY (8) ---- Targeting Computer Targeting Computer Peak State ------------ > --- POWER ------------ Ion Engine > --- PROPULSION ------- Light Treads Light Treads > --- UTILITY ---------- Cooling System Small Storage Unit Improved Terrain Scanner Hardened Light Armor Plating > --- WEAPON ----------- Medium Laser Heavy Assault Rifle > --- INVENTORY -------- Cooling System Visual Processing Unit Targeting Computer Medium Laser [Rating: 14] Favorites ----------- Power Ion Engine Engine Ion Engine Propulsion Light Treads Treads Light Treads Leg Aluminum Leg Wheel Armored Wheel Utility Small Storage Unit Device Improved Terrain Scanner Storage Small Storage Unit Processor Targeting Computer Protection Hardened Light Armor Plating Weapon Medium Laser Energy Gun Medium Laser Ballistic Gun Assault Rifle Launcher Grenade Launcher Build | -11 -10 -9 ------- Run | Yrd Mat Mat Slots Evolved 2 | . . 2 Power . | . . . Propulsion . | . . . Utility 2 | . . 2 Weapon . | . . . Parts Attached 36 | 10 6 20 Power 4 | 1 1 2 Engine 4 | 1 1 2 Core . | . . . Reactor . | . . . Propulsion 11 | 5 2 4 Treads 5 | 2 2 1 Leg 2 | . . 2 Wheel 4 | 3 . 1 Hover . | . . . Flight . | . . . Utility 11 | 2 . 9 Device 4 | 1 . 3 Storage 1 | 1 . . Processor 3 | . . 3 Hackware . | . . . Protection 3 | . . 3 Artifact . | . . . Weapon 10 | 2 3 5 Energy Gun 4 | . 2 2 Energy Cannon . | . . . Ballistic Gun 5 | 2 . 3 Ballistic Cannon . | . . . Launcher 1 | . 1 . Special Weapon . | . . . Impact Weapon . | . . . Slashing Weapon . | . . . Piercing Weapon . | . . . Special Melee Weapon . | . . . Unidentified Prototypes . | . . . Parts Lost 18 | . . 18 Power 2 | . . 2 Propulsion 4 | . . 4 Utility 7 | . . 7 Weapon 5 | . . 5 Highest Loss Streak 6 | . . 6 To Critical Strikes . | . . . Average Slot Usage (%) 90 | . 99 82 Engine 11 | . 14 9 Treads 19 | . 27 11 Leg 2 | . . 3 Device 12 | . 14 11 Storage 12 | . 14 11 Processor 4 | . . 9 Protection 3 | . . 7 Energy Gun 10 | . 10 9 Ballistic Gun 8 | . 9 6 Launcher 3 | . 8 . Naked Turns . | . . . Heaviest Build 23 | 12 16 23 Greatest Support 40 | 40 40 40 Greatest Overweight (x) 2 | . . 2 Average Overweight (x) . | . . . Largest Inventory Capacity 8 | 8 8 8 Average Capacity 7 | 7 8 8 Most Carried 5 | 2 5 5 Average Carried 1 | . 1 2 Final Capacity 8 | 8 8 8 Final Carried 3 | . 3 2 Class Distribution -------------------- 93% | Mutant 6% | Scavenger-Mutant Dominant Class ---------------- Mutant | -10/Materials Mutant | -9/Materials Resources | -11 -10 -9 ----------- Run | Yrd Mat Mat Matter Collected 810 | 248 263 299 Remotely . | . . . Salvage Created 1363 | 128 276 959 Parts 70 | 11 12 47 Haulers Intercepted . | . . . Recyclers Shooed 2 | . 2 . Parts Field Recycled . | . . . Retrieved Matter . | . . . Parts Self-Destructed . | . . . Prevented . | . . . Kills | -11 -10 -9 ------- Run | Yrd Mat Mat Combat Hostiles Destroyed 28 | . 4 24 Melee 1 | . . 1 Guns 24 | . 3 21 AOE 1 | . 1 . Classes Destroyed 8 | 3 2 3 Worker 5 | 2 2 1 Tunneler 2 | 1 1 . Recycler 2 | 1 1 . Watcher 2 | . 1 1 Swarmer 3 | . . 3 Grunt 18 | . 4 14 Brawler 2 | . . 2 Sentry 5 | . . 5 Best Kill Streak 6 | 2 3 6 Combat Bots Only 6 | . 2 6 Max Kills in Single Turn 2 | 1 2 1 Gunslinging . | . . . Exploded 1 | . 1 . Melee 1 | . . 1 Uniques/NPCs Destroyed . | . . . Combat | -11 -10 -9 -------- Run | Yrd Mat Mat Hostile Shots Fired 245 | . 19 226 Missed 66 | . 6 60 Damage Taken 2283 | . 153 2130 Core 335 | . 34 301 Absorbed by Shields . | . . . Core Remaining (%) 93 | 100 86 . Volleys Fired 169 | 15 28 126 Largest 2 | 2 2 2 Hottest 100 | 40 100 100 Shots Fired 250 | 30 41 179 Gun 246 | 30 37 179 Cannon . | . . . Launcher 4 | . 4 . Special . | . . . Kinetic 151 | 30 17 104 Thermal 95 | . 20 75 Explosive 4 | . 4 . Electromagnetic . | . . . Robot Hit Streak 13 | 5 7 13 Robot Miss Streak 3 | 2 3 3 Penetration Max . | . . . Secondary Targets 2 | . . 2 Max Gunslinging Chain 1 | . . 1 Shots Hit Robots 169 | 17 26 126 Core Hits 70 | 6 14 50 Critical Kills . | . . . Critical Parts Destroyed . | . . . Critical Strikes 8 | . 2 6 Burn 8 | . 2 6 Melee Attacks . | . . . Impact . | . . . Slashing . | . . . Piercing . | . . . Sneak Attacks . | . . . Combat Hostiles . | . . . Follow-up Attacks . | . . . Damage Inflicted 2515 | 190 494 1831 Guns 2329 | 190 324 1815 Cannons . | . . . Explosions 170 | . 170 . Melee . | . . . Ramming 16 | . . 16 Kinetic 1439 | 190 125 1124 Thermal 890 | . 199 691 Explosive 170 | . 170 . Electromagnetic . | . . . Impact . | . . . Slashing . | . . . Piercing . | . . . Highest Corruption 10 | . 1 10 Average Corruption 5 | . 1 7 Corruption Purged . | . . . Corruption Blocked . | . . . Effects 11 | . 1 10 Message Errors 4 | . 1 3 Matter Fused 4 | . . 4 Heat Flow Errors 1 | . . 1 Energy Discharges 1 | . . 1 Weapon Failures 1 | . . 1 Overload Shots . | . . . Overflow Damage 8 | . 8 . Projectiles . | . . . Explosions 8 | . 8 . Melee . | . . . Knockbacks . | . . . Impact . | . . . Kinetic . | . . . Secondary . | . . . Self-Inflicted Damage . | . . . Shots . | . . . Rammed 1 | . . 1 Targets Rammed 13 | . 1 12 Kicked 11 | . . 11 Crushed 1 | . 1 . Highest Temperature 242 | . 219 242 Average Temperature 68 | . 77 62 Received Heat Transfer 987 | . 87 900 Effects 4 | . 3 1 Energy Bleed 1 | . . 1 Interference 3 | . 3 . Siege Activations . | . . . Robots Corrupted . | . . . Combat Hostiles . | . . . Parts Fried . | . . . Impact Corruptions . | . . . Robots Melted 2 | . . 2 Combat Hostiles 2 | . . 2 Parts Melted 8 | . 1 7 Heat Transferred 3182 | . 740 2442 Parts Sabotaged . | . . . Parts Stolen . | . . . Parts Stripped . | . . . Power Chain Reactions . | . . . Alert | -11 -10 -9 ------- Run | Yrd Mat Mat Peak Influence 427 | 20 176 427 Initial 16 | . 13 16 Average 121 | 5 61 209 Maximum Alert Level 2 | . . 2 Low Security (%) 70 | 100 100 34 Level 1 27 | . . 60 Level 2 1 | . . 4 Level 3 . | . . . Level 4 . | . . . Level 5 . | . . . High Security . | . . . Max Security . | . . . Squads Dispatched 3 | . 2 1 Investigation 2 | . 2 . Extermination . | . . . Reinforcement 1 | . . 1 Assault . | . . . Garrison . | . . . Intercept . | . . . Searches Triggered . | . . . Construction Impeded . | . . . Haulers Reinforced . | . . . Active Scanning Responses . | . . . Cargo Convoy Interrupts . | . . . Stealth | -11 -10 -9 --------- Run | Yrd Mat Mat Distress Signals 4 | . 1 3 Communications Jammed . | . . . Distress Signals . | . . . Times Spotted 40 | . 6 34 Peak Tracking Total 9 | . 2 9 Tactical Retreats . | . . . Traps | -11 -10 -9 ------- Run | Yrd Mat Mat Traps Triggered 4 | . 4 . Indirectly . | . . . Trap Hack Attempts . | . . . Triggered . | . . . Disarmed . | . . . Reprogrammed . | . . . Reused . | . . . Traps Extracted . | . . . Installed . | . . . Triggered . | . . . Machines | -11 -10 -9 ---------- Run | Yrd Mat Mat Machines Disabled . | . . . Max in Single Turn . | . . . Machines Repaired . | . . . Machines Dismantled . | . . . Machines Sabotaged . | . . . Overloaded Fab Kills . | . . . Hacking | -11 -10 -9 --------- Run | Yrd Mat Mat Machines Accessed 7 | . 7 . Terminals 7 | . 7 . Fabricators . | . . . Repair Stations . | . . . Recycling Units . | . . . Scanalyzers . | . . . Garrison Access . | . . . Total Hacks 14 | . 14 . Successful 9 | . 9 . Failed 5 | . 5 . Catastrophic . | . . . Database Lockouts . | . . . Manual . | . . . Terminals 14 | . 14 . Fabricators . | . . . Repair Stations . | . . . Recycling Units . | . . . Scanalyzers . | . . . Garrison Access . | . . . Terminal Hacks 9 | . 9 . Record 2 | . 2 . Prototype ID Bank 2 | . 2 . Branch Access Points 1 | . 1 . Alert Level 1 | . 1 . Locate Traps 1 | . 1 . Security Status 1 | . 1 . Hauler Manifests 1 | . 1 . Fabricator Hacks . | . . . Repair Station Hacks . | . . . Recycling Unit Hacks . | . . . Scanalyzer . | . . . Garrison Access Hacks . | . . . Unauthorized Hacks . | . . . Terminals . | . . . Fabricators . | . . . Repair Stations . | . . . Recycling Units . | . . . Scanalyzers . | . . . Garrison Access . | . . . Data Cores Recovered . | . . . Used . | . . . Hacking Detections 3 | . 3 . Full Trace Events 1 | . 1 . Feedback Events 1 | . 1 . Corruption 1 | . 1 . Feedback Blocked . | . . . Robot Schematics Acquired . | . . . Robots Built . | . . . Authchips . | . . . Time . | . . . Total Robot Build Rating . | . . . Part Schematics Acquired . | . . . Parts Built . | . . . Authchips . | . . . Time . | . . . Total Part Build Rating . | . . . Parts Repaired . | . . . Time . | . . . Parts Recycled . | . . . Recycled Matter . | . . . Retrieved Matter . | . . . Retrieved Components . | . . . Parts Scanalyzed . | . . . Part Schematics Acquired . | . . . Parts Damaged . | . . . Bothacking | -11 -10 -9 ------------ Run | Yrd Mat Mat Used RIF Installer . | . . . Robots Hacked . | . . . Non-combat . | . . . Combat . | . . . Robot Hacks Applied . | . . . Relay Couplers Released . | . . . Fabnet Peak Effective % . | . . . Robots Rewired . | . . . Allies Hacked . | . . . Hacks Repelled . | . . . Allies | -11 -10 -9 -------- Run | Yrd Mat Mat Total Allies . | . . . Largest Group . | . . . Highest-Rated Group . | . . . Highest-Rated Ally . | . . . Total Orders . | . . . Ally Attacks . | . . . Total Damage . | . . . Kills . | . . . Allies Corrupted . | . . . Allies Melted . | . . . Intel | -11 -10 -9 ------- Run | Yrd Mat Mat Robot Analysis Total . | . . . Derelict Logs Recovered . | . . . Drone Launches . | . . . Drone Recoveries . | . . . Exploration | -11 -10 -9 ------------- Run | Yrd Mat Mat Turns Passed 1594 | 190 687 717 Spaces Moved 682 | 93 375 214 Core 14 | 8 . 6 Treads 585 | 67 375 143 Legs 64 | . . 64 Wheels 19 | 18 . 1 Hover . | . . . Flight . | . . . Fastest Speed 50 | 50 160 90 Average Speed 157 | 136 160 160 Slowest Speed 260 | 160 160 260 Overloaded Moves . | . . . Propulsion Burnouts . | . . . Robots Hopped . | . . . Cave-ins Triggered . | . . . Exploration Rate (%) 37 | 7 77 27 Regions Visited 2 Branch Regions . Pre-discovered Areas . | . . . Known Exits Taken . | . . . Unknown Exits Taken 2 | 1 1 . Scrap Searched . | . . . Spaces Dug . | . . . Terrain Destroyed 23 | . 23 . Melee . | . . . Projectile . | . . . AOE 23 | . 23 . Terrain Rammed . | . . . Walls Destroyed . | . . . Machines Disabled . | . . . Actions | -11 -10 -9 --------- Run | Yrd Mat Mat Total 945 | 128 422 395 Wait 3 | . . 3 Move 680 | 92 374 214 Hop . | . . . Pick Up 35 | 9 9 17 Fast Attach 1 | . . 1 Attach 27 | 7 4 16 Detach . | . . . Swap 8 | 3 2 3 Drop 9 | 2 4 3 Fire 169 | 15 28 126 Melee . | . . . Ram . | . . . Kick 11 | . . 11 Crush 2 | . 1 1 Escape Stasis . | . . . Rewire . | . . . Trap . | . . . Miscellaneous . | . . . Route ------- -11/Scrapyard -10/Materials (discovered 4 exits: [*Mat x3] / Min) -9/Materials (discovered 1 exit: [*Min]) History --------- Turn | Location | Event 3 | -11/Scrapyard | Discovered new exit (range 15) 191 | -11/Scrapyard | Entered Materials 325 | -10/Materials | Identified exit to Mines 327 | -10/Materials | Build established: Mutant 345 | -10/Materials | Discovered new exit (range 16) 574 | -10/Materials | Discovered new exit (range 16) 781 | -10/Materials | Discovered new exit (range 16) 878 | -10/Materials | Entered another Materials area 878 | -9/Materials | Evolved 2 slots: Utility x2 1124 | -9/Materials | Discovered new exit (range 15) 1250 | -9/Materials | Lost 4 parts (1p1n1u1w) 1374 | -9/Materials | Lost 6 parts (1p1n2u2w) 1422 | -9/Materials | Core integrity fell below 50% 1447 | -9/Materials | System corruption reached 10% 1495 | -9/Materials | Lost 5 parts (1n2u2w) 1595 | -9/Materials | Self-destructed Last Messages --------------- G-34 Mercenary destroyed. Z0UCMA RRY60POPY8UHDPTFXMXLA=PTPLFZY 07P W-16 Scout destroyed. K-01 Serf collects debris. R-06 Scavenger collects Lgt. Ion Engine. K-01 Serf collects debris. Lgt. Armor Plating destroyed. Aluminum Leg destroyed. K-01 Serf collects debris. R-06 Scavenger collects Hover Unit. G-34 Mercenary destroyed. K-01 Serf collects debris. System corrupted: Matter fused (-5). K-01 Serf collects debris. G-34 Mercenary destroyed. K-01 Serf collects debris. System corrupted: Energy discharge (-82). K-01 Serf collects debris. System corrupted: Hvy. Assault Rifle jammed. K-01 Serf collects debris. Map ----- +----------------------------------------------------+ | #??# #????????????????###???????????????????? | | #??# ############## #???????????????????? | | ##?# !%[ #???????????????????? | | #??# < +???????????????????? | | ##?# #???????????????????? | | ####?##########+######## ???????????????????????? | | ????#?????## #???? ?? ??????????????????? | | ???????#???#""" "" #???? #????????????????????? | | ?#???#?????#""" """#???? #????????????????????? | | ??#????????#""" R"#???? #????????????????????? | | ?#?????????# """#???? #????????????????????? | | ???????????#""" #???? #????????????????????? | | ?????????#?#""" = #???? #????????????????????? | | ??##########""" #???? #????????????????????? | | ??# """ =# #???# #??#?????????????????? | | ?##="T" #+########???# #????????????????????? | | ?#%=[ % !=# ############ #????????????????????? | | ??#[ %!! #%!* ^ ! #????????????????????? | | ??# %!! %+ #????????????????????? | | ??# % # ##???????????????????? | | ??# #% ^ #????????????????????? | | ??# % # #????????????????????? | | ??# # % #????????????????????? | | "?########## ^ #????????????????????? | | ????#??????# ^ % #????????????????????? | | ????#??????######%% = [@ ### #??????????????? | | ????????#???????# ^^ k k #??????????????? | | ??? ????????????#% [!=%k #??????????????? | | ????????????????# % #??????????????? | | ????????????????# *% #??????????????? | | ????????????????# a +??????????????? | | ????????????????# ##### kg #??????????????? | | ??????????????? #???# !% #??????????????? | | ????????????? #???# % [* #??????????????? | | ???????????? #???# %[ #??????????????? | | ??????????? ##+###???# #??????????????? | | ???????????####??????????## ####+##??????????????? | | ??????????????????????????? #??? ???????????????? | | ??????????????????????????? #????""??????????????? | | ???????????????????????????a#?????"??????????????? | | ??????????????????????????? #????????????????????? | | ????????????????????????????#????????????????????? | | ?????????????????????????????????????????????????? | | ?????????????????????????????????????????????????? | | ?????????????????????????????????????????????????? | | ?????????????????????????????????????????????????? | | ?????????????????????????????????????????????????? | | ?????????????????????????????????????????????????? | | ?????????????????????????????????????????????????? | | ?????????????????????????????????????????????????? | +----------------------------------------------------+ Best States ------------- Heat Dissipation 50 Energy Generation 12 Energy Capacity 265 Matter Stores 300 Matter Capacity 300 Sight Range 18 Terrain Scan Range 16 Terrain Scan Density 10 Armor Coverage 150 Evasion (%) 45 Targeting Accuracy 5 Recoil Reduction 2 Item Schematics ----------------- None Robot Schematics ------------------ None Fabricated ------------ Nothing Alien Tech Used ----------------- None Achievements -------------- System Compromised Challenges ------------ None Game ------ Seed CouplerZioniteFacilitator Manual? 0 Play Time 00:16:34 Cumulative 3.1 hours Start 2024.03.31 @ 14:43:30 End 2024.03.31 @ 14:56:33 Sessions 1 Manual Loads 0 Difficulty Rogue Special Mode None Game No. 6 Rogue 5 Adventurer 1 Explorer 0 Win Type - Total 0 Types 0/0/0/0/0/0/0/0/0 Lore% 2 Gallery% 9 Achievement% 10 Wizard Run 0 Options --------- Layout 1 ASCII 0 Keyboard 0 Movement Mouse Keybinds 0 Fullscreen 2 Font 24/Terminus Map View 50x35 Zoom Use 0% Tactical HUD 0 Map Filters NONE Filters NONE Steam 1 RUN: 070c4aae-7850-490f-b54d-7b7ac8f5d671